bitfinex/quotes_SOLUSD_20251116
["timestamp","ask_amount","ask_price","bid_price","bid_amount"]
[1763319645691,0.2,136.27,136.24,9.78882769]
[1763319646588,0.2,136.27,136.24,10.44882769]
[1763319646795,0.2,136.27,136.24,9.78882769]
[1763319646993,0.2,136.27,136.24,10.44882769]
[1763319647483,0.2,136.27,136.24,23.5208593]
[1763319648683,0.2,136.27,136.24,30.86084755]
[1763319649403,0.2,136.27,136.24,55.51204754]
[1763319649797,0.2,136.27,136.26,45.5120593]
[1763319650190,0.2,136.27,136.26,46.1720593]
[1763319650998,0.2,136.27,136.26,40.57988817]
[1763319652114,0.2,136.27,136.26,33.10002769]
[1763319652412,0.2,136.27,136.26,40.57988817]
[1763319652617,0.2,136.3,136.29,32.44002769]
[1763319652907,0.2,136.3,136.29,39.91988817]
[1763319653215,0.2,136.3,136.29,40.57988817]
[1763319654603,0.2,136.3,136.29,32.44002769]
[1763319654906,0.2,136.3,136.29,9.78882769]
[1763319655086,0.2,136.3,136.26,30.79106048]
[1763319655291,0.2,136.3,136.27,10.44882769]
[1763319655495,0.2,136.3,136.28,10.44882769]
[1763319655688,0.2,136.3,136.28,9.78882769]
[1763319656304,0.2,136.3,136.27,9.78882769]
[1763319656606,0.2,136.3,136.27,10.44882769]
[1763319657096,0.2,136.3,136.27,9.78882769]
[1763319657298,0.2,136.3,136.27,10.44882769]
[1763319657604,0.2,136.33,136.28,0.66]
[1763319657899,0.2,136.33,136.32,32.44002769]
[1763319658325,0.2,136.33,136.32,40.57988817]
[1763319658510,0.2,136.33,136.32,32.44002769]
[1763319658803,0.2,136.33,136.32,9.78882769]
[1763319658978,0.2,136.33,136.32,17.26868817]
[1763319659178,0.2,136.33,136.32,17.92868817]
[1763319659911,0.2,136.33,136.32,25.40854865]
[1763319660220,0.2,136.33,136.32,17.92868817]
[1763319660408,0.2,136.33,136.32,17.26868817]
[1763319660582,0.2,136.33,136.32,32.44002769]
[1763319661003,0.2,136.33,136.32,40.60988817]
[1763319661721,0.2,136.36,136.35,32.44002769]
[1763319661886,0.2,136.36,136.35,40.60988817]
[1763319663183,0.2,136.37,136.36,9.78882769]
[1763319663484,0.2,136.43,136.42,9.78882769]
[1763319663680,0.2,136.43,136.42,17.26868817]
[1763319663893,0.2,136.43,136.42,17.95868817]
[1763319664324,0.2,136.49,136.42,25.28899164]
[1763319664628,0.2,136.49,136.48,32.44002769]
[1763319664810,0.91,136.49,136.48,9.78882769]
[1763319665684,0.2,136.49,136.48,17.26868817]
[1763319666187,0.91,136.49,136.48,17.26868817]
[1763319666611,0.2,136.49,136.48,17.26868817]
[1763319666808,0.91,136.51,136.48,17.26868817]
[1763319666809,0.2,136.54,136.5,22.6512]
[1763319667109,0.91,136.54,136.53,17.26868817]
[1763319667311,0.91,136.54,136.53,9.78882769]
[1763319667312,0.2,136.54,136.53,9.78882769]
[1763319667516,50.0,136.7,136.57,32.44002769]
[1763319667714,50.0,136.7,136.5,22.6512]
[1763319667715,0.71,136.61,136.6,9.78882769]
[1763319667912,0.71,136.61,136.57,7.47986048]
[1763319668215,0.71,136.61,136.57,9.78882769]
[1763319668414,8.18986048,136.61,136.57,9.78882769]
[1763319668592,0.71,136.61,136.57,9.78882769]
[1763319668790,0.71,136.6,136.59,7.47986048]
[1763319669013,0.71,136.6,136.59,9.78882769]
[1763319669200,0.71,136.6,136.54,32.44002769]
[1763319669388,0.71,136.6,136.55,9.78882769]
[1763319669588,0.71,136.6,136.57,9.78882769]
[1763319670013,0.71,136.6,136.59,9.78882769]
[1763319670215,0.71,136.6,136.59,17.26868817]
[1763319670397,50.0,136.69,136.59,17.26868817]
[1763319670598,0.71,136.62,136.57,9.78882769]
[1763319670798,0.71,136.62,136.61,17.26868817]
[1763319671115,50.0,136.71,136.62,9.78882769]
[1763319671116,0.71,136.64,136.62,9.78882769]
[1763319671418,0.71,136.64,136.63,9.78882769]
[1763319671717,0.71,136.64,136.63,17.26868817]
[1763319672905,0.71,136.64,136.63,9.78882769]
[1763319673109,0.71,136.64,136.6,7.47986048]
[1763319673110,22.6512,136.63,136.6,7.47986048]
[1763319673400,0.71,136.62,136.59,7.47986048]
[1763319673811,0.71,136.62,136.58,7.47986048]
[1763319674020,0.71,136.62,136.52,0.69]
[1763319674021,0.71,136.62,136.61,7.47986048]
[1763319674194,0.71,136.62,136.56,7.47986048]
[1763319674402,0.71,136.62,136.59,7.47986048]
[1763319674600,0.71,136.62,136.54,23.3412]
[1763319674601,0.71,136.62,136.6,7.47986048]
[1763319675390,0.71,136.62,136.57,9.78882769]
[1763319675602,0.71,136.62,136.6,7.47986048]
[1763319676896,0.71,136.62,136.51,9.78882769]
[1763319676897,7.47986048,136.61,136.51,9.78882769]
[1763319677124,22.6512,136.61,136.55,9.78882769]
[1763319677330,7.47986048,136.59,136.55,9.78882769]
[1763319677694,0.65,136.6,136.5,33.55992914]
[1763319677695,22.6512,136.57,136.51,7.47986048]
[1763319677894,7.47986048,136.56,136.51,7.47986048]
[1763319678193,7.47986048,136.53,136.48,7.47986048]
[1763319678394,8.03986048,136.52,136.47,7.47986048]
[1763319678715,7.47986048,136.5,136.45,7.47986048]
[1763319679022,22.6512,136.53,136.45,7.47986048]
[1763319679023,0.56,136.51,136.45,7.47986048]
[1763319679220,8.03986048,136.52,136.47,7.47986048]
[1763319679524,7.47986048,136.51,136.46,7.47986048]
[1763319679698,8.03986048,136.51,136.47,9.78882769]
[1763319679892,0.56,136.5,136.47,9.78882769]
[1763319681495,7.47986048,136.48,136.44,9.78882769]
[1763319681694,8.03986048,136.47,136.44,9.78882769]
[1763319681893,0.56,136.47,136.43,9.78882769]
[1763319682115,7.47986048,136.45,136.43,9.78882769]
[1763319682325,7.47986048,136.44,136.36,0.72]
[1763319682624,30.13106048,136.48,136.37,7.47986048]
[1763319682625,7.47986048,136.42,136.37,7.47986048]
[1763319682794,7.47986048,136.41,136.36,7.47986048]
[1763319683210,0.56,136.4,136.36,7.47986048]
[1763319683499,0.56,136.41,136.37,7.47986048]
[1763319683700,0.56,136.4,136.37,7.47986048]
[1763319684011,0.56,136.44,136.4,9.78882769]
[1763319684332,0.56,136.44,136.4,17.26868817]
[1763319684623,0.56,136.46,136.42,17.26868817]
[1763319685818,7.47986048,136.44,136.42,9.78882769]
[1763319686128,7.47986048,136.45,136.41,9.78882769]
[1763319686305,0.56,136.45,136.41,17.26868817]
[1763319686510,0.56,136.45,136.41,7.47986048]
[1763319687124,30.13106048,136.47,136.43,9.78882769]
[1763319687312,0.56,136.47,136.43,17.26868817]
[1763319687512,8.03986048,136.46,136.43,9.78882769]
[1763319687909,7.47986048,136.44,136.35,0.72]
[1763319688101,7.47986048,136.48,136.44,9.78882769]
[1763319688102,0.56,136.48,136.44,9.78882769]
[1763319688425,0.56,136.48,136.44,17.26868817]
[1763319688629,0.56,136.48,136.44,7.47986048]
[1763319688837,8.03986048,136.48,136.4,0.72]
[1763319689010,8.03986048,136.48,136.42,7.47986048]
[1763319689201,8.03986048,136.48,136.44,9.78882769]
[1763319689202,0.56,136.47,136.44,9.78882769]
[1763319689906,22.6512,136.5,136.45,7.47986048]
[1763319690119,0.56,136.49,136.46,9.78882769]
[1763319691331,8.03986048,136.49,136.44,7.47986048]
[1763319691910,7.47986048,136.49,136.43,9.78882769]
[1763319692112,0.56,136.48,136.44,7.47986048]
[1763319692311,23.2112,136.51,136.46,7.47986048]
[1763319692533,30.69106048,136.51,136.46,7.47986048]
[1763319692709,0.56,136.5,136.48,9.78882769]
[1763319692903,0.56,136.5,136.46,7.47986048]
[1763319693938,7.47986048,136.49,136.45,9.78882769]
[1763319694243,7.47986048,136.47,136.43,9.78882769]
[1763319694538,7.47986048,136.44,136.38,7.47986048]
[1763319694720,30.13106048,136.48,136.38,17.26868817]
[1763319694721,7.47986048,136.42,136.38,17.26868817]
[1763319694911,7.47986048,136.46,136.42,9.78882769]
[1763319695257,7.47986048,136.46,136.39,0.72]
[1763319695258,7.47986048,136.44,136.39,7.47986048]
[1763319695538,7.47986048,136.43,136.38,17.26868817]
[1763319695849,22.6512,136.47,136.35,0.72]
[1763319695850,7.47986048,136.46,136.42,9.78882769]
[1763319696130,0.56,136.46,136.42,17.26868817]
[1763319696340,0.56,136.46,136.4,9.78882769]
[1763319696707,0.56,136.46,136.42,7.47986048]
[1763319697006,22.6512,136.49,136.4,9.78882769]
[1763319697007,0.56,136.49,136.43,7.47986048]
[1763319697214,0.56,136.48,136.45,9.78882769]
[1763319699339,0.56,136.52,136.48,9.78882769]
[1763319699509,0.56,136.52,136.5,9.78882769]
[1763319699916,0.56,136.52,136.48,17.26868817]
[1763319700117,0.56,136.52,136.46,0.72]
[1763319700336,0.56,136.52,136.5,9.78882769]
[1763319700820,8.03986048,136.52,136.47,17.26868817]
[1763319701219,8.03986048,136.52,136.45,22.6512]
[1763319701220,7.47986048,136.49,136.45,9.78882769]
[1763319701423,7.47986048,136.47,136.42,7.47986048]
[1763319701648,7.47986048,136.48,136.43,7.47986048]
[1763319701833,7.47986048,136.48,136.44,9.78882769]
[1763319702022,0.56,136.47,136.44,9.78882769]
[1763319702531,7.47986048,136.46,136.41,9.78882769]
[1763319702860,7.47986048,136.45,136.41,9.78882769]
[1763319703224,8.03986048,136.45,136.41,9.78882769]
[1763319703418,0.56,136.44,136.39,17.26868817]
[1763319703646,8.03986048,136.44,136.39,17.26868817]
[1763319704026,0.56,136.43,136.39,17.26868817]
[1763319704333,0.56,136.43,136.37,9.78882769]
[1763319704520,0.56,136.43,136.39,7.47986048]
[1763319705226,30.69106048,136.46,136.41,17.26868817]
[1763319705428,0.56,136.46,136.43,9.78882769]
[1763319705616,8.03986048,136.45,136.43,9.78882769]
[1763319705819,7.47986048,136.46,136.41,7.47986048]
[1763319706249,0.56,136.45,136.41,7.47986048]
[1763319707443,0.56,136.45,136.4,10.50882769]
[1763319707654,0.56,136.45,136.41,7.47986048]
[1763319708121,7.47986048,136.44,136.4,9.78882769]
[1763319708321,30.13106048,136.43,136.4,9.78882769]
[1763319708551,7.47986048,136.42,136.38,9.78882769]
[1763319708747,8.03986048,136.42,136.38,9.78882769]
[1763319709047,0.56,136.41,136.38,9.78882769]
[1763319709343,0.56,136.44,136.38,9.78882769]
[1763319709521,7.47986048,136.43,136.38,17.26868817]
[1763319709921,0.56,136.42,136.38,17.26868817]
[1763319710153,7.47986048,136.43,136.38,17.26868817]
[1763319710325,7.47986048,136.44,136.4,9.78882769]
[1763319710525,7.47986048,136.44,136.39,9.78882769]
[1763319710738,8.03986048,136.43,136.39,9.78882769]
[1763319710928,8.03986048,136.43,136.38,7.47986048]
[1763319710929,13.00728889,136.42,136.38,9.78882769]
[1763319711120,0.56,136.42,136.38,9.78882769]
[1763319711349,0.56,136.44,136.38,23.51611658]
[1763319711655,13.00728889,136.43,136.38,22.79611658]
[1763319712027,0.56,136.42,136.38,22.79611658]
[1763319712429,35.65848889,136.41,136.34,0.2]
[1763319712732,13.56728889,136.4,136.36,9.78882769]
[1763319713526,0.56,136.39,136.36,9.78882769]
[1763319714349,13.56728889,136.44,136.38,22.79611658]
[1763319714654,0.56,136.44,136.39,13.00728889]
[1763319714850,22.6512,136.42,136.39,13.00728889]
[1763319715038,0.56,136.44,136.4,22.79611658]
[1763319715236,36.21848889,136.44,136.4,9.78882769]
[1763319715558,13.00728889,136.43,136.38,9.78882769]
[1763319715734,13.56728889,136.43,136.38,9.78882769]
[1763319716054,13.56728889,136.42,136.36,22.79611658]
[1763319716558,0.56,136.41,136.36,22.79611658]
[1763319716948,13.00728889,136.42,136.37,0.72]
[1763319717142,13.00728889,136.42,136.38,9.78882769]
[1763319717335,13.56728889,136.42,136.38,9.78882769]
[1763319717525,0.56,136.41,136.38,9.78882769]
[1763319717721,0.56,136.41,136.36,9.78882769]
[1763319718048,13.56728889,136.41,136.36,9.78882769]
[1763319718240,0.56,136.41,136.36,22.79611658]
[1763319718548,0.56,136.4,136.36,22.79611658]
[1763319719442,0.56,136.4,136.34,0.2]
[1763319719443,22.6512,136.38,136.34,0.2]
[1763319719654,13.00728889,136.38,136.34,0.2]
[1763319719822,13.56728889,136.38,136.34,9.98882769]
[1763319720149,22.6512,136.35,136.34,0.2]
[1763319720741,13.56728889,136.35,136.34,0.2]
[1763319721164,36.21848889,136.35,136.34,0.2]
[1763319721328,13.56728889,136.35,136.34,0.2]
[1763319721533,36.21848889,136.35,136.34,0.2]
[1763319721750,13.56728889,136.35,136.34,0.2]
[1763319724638,19.45777436,136.35,136.34,0.2]
[1763319724960,13.56728889,136.35,136.34,0.2]
[1763319725476,22.6512,136.31,136.28,0.2]
[1763319725763,13.00728889,136.29,136.28,0.2]
[1763319726464,13.56728889,136.29,136.28,0.2]
[1763319726838,13.00728889,136.3,136.28,0.2]
[1763319727060,13.00728889,136.29,136.28,0.2]
[1763319728342,13.00728889,136.3,136.28,0.2]
[1763319728550,13.00728889,136.31,136.28,0.2]
[1763319728755,13.00728889,136.31,136.29,9.78882769]
[1763319728949,13.00728889,136.31,136.28,0.2]
[1763319729155,13.00728889,136.3,136.28,0.2]
[1763319729344,35.65848889,136.29,136.28,0.2]
[1763319730357,13.56728889,136.29,136.28,0.2]
[1763319730868,13.56728889,136.29,136.2,0.2]
[1763319730869,22.6512,136.26,136.2,0.2]
[1763319731067,35.65848889,136.21,136.2,0.2]
[1763319731580,22.6512,136.21,136.2,0.2]
[1763319731759,36.21848889,136.21,136.2,0.2]
[1763319732077,13.56728889,136.21,136.2,0.2]
[1763319733068,50.56,136.21,136.12,0.2]
[1763319733266,35.65848889,136.17,136.13,0.68]
[1763319733656,13.00728889,136.16,136.13,0.68]
[1763319734761,13.00728889,136.16,136.14,9.78882769]
[1763319735272,13.00728889,136.16,136.14,0.68]
[1763319735773,22.6512,136.15,136.14,0.68]
[1763319736150,22.6512,136.15,136.12,0.2]
[1763319736151,13.00728889,136.15,136.12,0.2]
[1763319736360,13.00728889,136.14,136.12,0.87]
[1763319736565,13.00728889,136.13,136.12,0.2]
[1763319736953,13.56728889,136.13,136.12,0.2]
[1763319737676,22.6512,136.1,136.04,36.60731776]
[1763319737863,12.8872373,136.06,136.05,9.78882769]
[1763319738064,12.8872373,136.06,136.03,0.67]
[1763319738567,13.00728889,136.1,136.03,0.67]
[1763319738752,13.00728889,136.09,136.04,9.78882769]
[1763319738948,35.65848889,136.1,136.04,22.79611658]
[1763319739173,35.65848889,136.1,136.05,0.72]
[1763319739558,22.6512,136.1,136.06,9.78882769]
[1763319739977,22.6512,136.1,136.08,9.78882769]
[1763319740366,22.6512,136.1,136.09,10.50882769]
[1763319741283,22.6512,136.1,136.09,9.78882769]
[1763319741469,22.6512,136.1,136.09,10.50882769]
[1763319742266,13.00728889,136.13,136.09,10.50882769]
[1763319742459,13.00728889,136.13,136.11,9.78882769]
[1763319743169,35.65848889,136.12,136.1,9.78882769]
[1763319743355,22.6512,136.12,136.08,13.00728889]
[1763319743561,13.00728889,136.14,136.09,9.78882769]
[1763319743790,0.56,136.19,136.11,9.78882769]
[1763319743961,35.65848889,136.15,136.13,9.78882769]
[1763319744589,35.65848889,136.15,136.11,9.78882769]
[1763319744776,13.00728889,136.14,136.11,0.72]
[1763319744982,22.6512,136.12,136.09,9.78882769]
[1763319745181,13.00728889,136.13,136.09,10.50882769]
[1763319745490,13.00728889,136.1,136.07,9.78882769]
[1763319745658,0.56,136.12,136.07,9.78882769]
[1763319745863,22.6512,136.16,136.08,23.51611658]
[1763319746064,13.00728889,136.13,136.1,9.78882769]
[1763319746574,22.6512,136.12,136.11,10.50882769]
[1763319746884,35.65848889,136.15,136.11,10.50882769]
[1763319747264,22.6512,136.13,136.12,10.50882769]
[1763319747588,22.6512,136.13,136.11,9.78882769]
[1763319747773,22.6512,136.13,136.11,10.50882769]
[1763319749080,22.6512,136.13,136.1,9.78882769]
[1763319749287,22.6512,136.13,136.12,0.72]
[1763319749587,22.6512,136.13,136.11,0.72]
[1763319750164,13.00728889,136.13,136.12,9.78882769]
[1763319751990,13.00728889,136.14,136.12,9.78882769]
[1763319752209,22.6512,136.18,136.12,9.78882769]
[1763319752395,6.50287652,136.22,136.14,9.78882769]
[1763319752700,13.00728889,136.18,136.14,9.78882769]
[1763319752884,13.00728889,136.18,136.14,10.49882769]
[1763319753090,13.00728889,136.19,136.16,9.78882769]
[1763319753287,13.00728889,136.2,136.16,9.78882769]
[1763319753490,22.6512,136.17,136.15,9.78882769]
[1763319753993,22.6512,136.17,136.16,0.71]
[1763319755482,35.65848889,136.19,136.16,0.71]
[1763319755682,13.00728889,136.19,136.16,0.71]
[1763319758685,13.00728889,136.19,136.17,9.78882769]
[1763319760085,13.00728889,136.19,136.17,0.71]
[1763319760291,13.00728889,136.19,136.15,9.78882769]
[1763319760491,13.00728889,136.19,136.18,9.78882769]
[1763319760694,22.6512,136.2,136.19,9.78882769]
[1763319760900,35.65848889,136.2,136.19,9.78882769]
[1763319761094,35.65848889,136.2,136.18,0.71]
[1763319761398,13.00728889,136.19,136.18,0.71]
[1763319761992,13.00728889,136.19,136.17,9.78882769]
[1763319762382,13.00728889,136.19,136.15,9.78882769]
[1763319762584,22.6512,136.2,136.19,9.78882769]
[1763319762785,103.2,136.23,136.19,9.78882769]
[1763319762786,13.00728889,136.23,136.19,9.78882769]
[1763319762998,0.56,136.27,136.21,9.78882769]
[1763319763284,0.1,136.29,136.23,9.78882769]
[1763319763504,13.00728889,136.27,136.23,9.78882769]
[1763319763709,13.00728889,136.27,136.25,9.78882769]
[1763319764213,13.00728889,136.26,136.25,0.71]
[1763319764518,13.00728889,136.26,136.21,9.78882769]
[1763319764685,13.00728889,136.23,136.21,9.78882769]
[1763319764890,35.65848889,136.23,136.21,0.71]
[1763319766693,35.65848889,136.23,136.22,9.78882769]
[1763319767316,35.65848889,136.23,136.22,0.71]
[1763319768725,35.65848889,136.23,136.22,10.49882769]
[1763319771006,35.65848889,136.23,136.22,9.78882769]
[1763319771325,22.6512,136.2,136.19,9.78882769]
[1763319771494,48.66577778,136.2,136.16,0.71]
[1763319771694,13.00728889,136.17,136.16,0.71]
[1763319771898,13.00728889,136.17,136.14,9.78882769]
[1763319771899,35.65848889,136.17,136.14,9.78882769]
[1763319772098,13.00728889,136.15,136.14,9.78882769]
[1763319772293,13.00728889,136.15,136.09,22.79611658]
[1763319772511,13.00728889,136.14,136.09,22.79611658]
[1763319773022,7.5011573,136.14,136.11,9.78882769]
[1763319773518,7.5011573,136.14,136.13,9.78882769]
[1763319774017,7.5011573,136.14,136.13,0.71]
[1763319775099,22.6512,136.12,136.11,9.78882769]
[1763319775303,30.1523573,136.12,136.11,9.78882769]
[1763319775504,30.1523573,136.12,136.1,0.71]
[1763319775901,30.1523573,136.12,136.09,9.78882769]
[1763319776107,7.5011573,136.1,136.09,0.71]
[1763319776324,7.5011573,136.1,136.09,10.49882769]
[1763319776494,7.5011573,136.1,136.09,9.78882769]
[1763319776916,7.5011573,136.1,136.07,0.71]
[1763319777117,7.5011573,136.08,136.07,0.71]
[1763319777591,0.56,136.15,136.07,0.71]
[1763319777907,7.5011573,136.09,136.07,0.71]
[1763319778112,7.5011573,136.08,136.07,0.71]
[1763319778800,7.5011573,136.08,136.07,10.49882769]
[1763319779890,22.6512,136.13,136.08,9.78882769]
[1763319780096,50.0,136.16,136.08,10.49882769]
[1763319780296,7.5011573,136.12,136.1,9.78882769]
[1763319780517,50.0,136.18,136.09,0.68]
[1763319780518,7.5011573,136.11,136.09,0.68]
[1763319780690,22.6512,136.13,136.09,10.46882769]
[1763319780691,7.5011573,136.1,136.09,10.46882769]
[1763319781109,7.5011573,136.12,136.1,9.78882769]
[1763319781415,7.5011573,136.12,136.1,10.46882769]
[1763319781601,7.5011573,136.12,136.04,22.6512]
[1763319781602,22.6512,136.15,136.11,0.68]
[1763319781794,7.5011573,136.13,136.12,9.78882769]
[1763319782200,7.5011573,136.13,136.12,0.68]
[1763319782911,103.2,136.15,136.12,0.68]
[1763319783107,7.5011573,136.13,136.12,0.68]
[1763319783302,50.0,136.2,136.12,0.68]
[1763319783303,7.5011573,136.27,136.2,9.78882769]
[1763319783508,7.6011573,136.29,136.23,7.5011573]
[1763319783824,7.6011573,136.29,136.2,9.78882769]
[1763319783825,7.5011573,136.26,136.2,9.78882769]
[1763319784122,7.6011573,136.29,136.24,9.78882769]
[1763319784633,7.5011573,136.28,136.22,7.5011573]
[1763319784828,0.1,136.29,136.21,9.78882769]
[1763319784829,23.4312,136.29,136.21,9.78882769]
[1763319785026,7.5011573,136.24,136.21,9.78882769]
[1763319785233,7.5011573,136.24,136.2,9.78882769]
[1763319785413,7.5011573,136.23,136.18,9.78882769]
[1763319785614,7.5011573,136.23,136.18,17.28998499]
[1763319786125,0.68,136.25,136.18,9.78882769]
[1763319786326,7.5011573,136.22,136.18,9.78882769]
[1763319787233,7.5011573,136.23,136.18,7.5011573]
[1763319787930,7.5011573,136.24,136.18,7.5011573]
[1763319788442,0.68,136.25,136.2,9.78882769]
[1763319788443,7.5011573,136.25,136.2,9.78882769]
[1763319788632,7.5011573,136.24,136.18,7.5011573]
[1763319788813,7.5011573,136.23,136.17,9.78882769]
[1763319789016,7.5011573,136.22,136.17,17.28998499]
[1763319789213,7.5011573,136.23,136.18,7.5011573]
[1763319789416,0.78,136.29,136.21,17.28998499]
[1763319789647,7.5011573,136.27,136.21,17.28998499]
[1763319789808,7.5011573,136.27,136.23,9.78882769]
[1763319790732,7.5011573,136.27,136.22,7.5011573]
[1763319790733,7.5011573,136.27,136.22,9.78882769]
[1763319791732,7.5011573,136.26,136.21,17.28998499]
[1763319792118,7.5011573,136.27,136.21,17.28998499]
[1763319792936,7.5011573,136.27,136.22,7.5011573]
[1763319793133,23.4312,136.29,136.25,9.78882769]
[1763319793134,0.1,136.29,136.25,9.78882769]
[1763319793314,0.1,136.29,136.25,7.5011573]
[1763319793514,0.1,136.29,136.27,9.78882769]
[1763319793931,0.1,136.29,136.24,9.78882769]
[1763319794131,0.1,136.29,136.27,17.28998499]
[1763319794636,0.1,136.29,136.28,17.28998499]
[1763319795947,0.1,136.29,136.28,24.62781886]
[1763319798436,0.1,136.29,136.28,9.78882769]
[1763319800038,7.6011573,136.29,136.28,9.78882769]
[1763319800552,8.2811573,136.29,136.28,9.78882769]
[1763319800852,7.6011573,136.29,136.28,9.78882769]
[1763319801244,0.1,136.29,136.28,9.78882769]
[1763319801432,0.78,136.37,136.29,9.78882769]
[1763319801636,7.5011573,136.34,136.29,17.28998499]
[1763319801937,7.5011573,136.32,136.28,9.78882769]
[1763319802147,23.3312,136.36,136.28,17.28998499]
[1763319802350,7.5011573,136.35,136.31,9.78882769]
[1763319802846,7.6011573,136.37,136.33,9.78882769]
[1763319803227,0.1,136.37,136.33,7.5011573]
[1763319804745,7.6011573,136.37,136.33,9.78882769]
[1763319805755,7.5011573,136.36,136.32,9.78882769]
[1763319806054,8.1811573,136.36,136.32,9.78882769]
[1763319806262,8.1811573,136.35,136.31,9.78882769]
[1763319806467,7.5011573,136.35,136.31,9.78882769]
[1763319809040,0.68,136.35,136.31,17.28998499]
[1763319809657,0.68,136.35,136.31,9.78882769]
[1763319809658,8.1811573,136.35,136.31,9.78882769]
[1763319810758,8.2811573,136.37,136.32,7.5011573]
[1763319811237,0.68,136.36,136.31,9.78882769]
[1763319811437,0.68,136.36,136.32,7.5011573]
[1763319811946,8.1811573,136.36,136.32,7.5011573]
[1763319813133,0.68,136.36,136.32,7.5011573]
[1763319813335,0.1,136.37,136.35,9.78882769]
[1763319813545,0.1,136.37,136.34,9.78882769]
[1763319813954,0.1,136.37,136.34,7.5011573]
[1763319814354,0.1,136.37,136.34,9.78882769]
[1763319814951,0.1,136.37,136.34,17.28998499]
[1763319815152,0.1,136.37,136.35,7.5011573]
[1763319816040,0.1,136.37,136.34,9.78882769]
[1763319816361,0.1,136.37,136.34,17.28998499]
[1763319817747,0.1,136.37,136.34,9.78882769]
[1763319817955,0.1,136.37,136.34,17.28998499]
[1763319818360,0.1,136.37,136.35,7.5011573]
[1763319818941,0.1,136.37,136.34,17.28998499]
[1763319821970,0.1,136.37,136.35,7.5011573]
[1763319823672,0.1,136.37,136.34,17.28998499]
[1763319825173,0.1,136.37,136.36,9.78882769]
[1763319829852,0.1,136.37,136.36,7.5011573]
[1763319830750,0.1,136.37,136.36,39.94118499]
[1763319831059,0.1,136.37,136.36,47.27471388]
[1763319831254,0.1,136.37,136.36,24.62351388]
[1763319831567,0.1,136.41,136.4,32.44002769]
[1763319831767,0.1,136.41,136.4,39.94118499]
[1763319832148,0.1,136.41,136.4,47.44234229]
[1763319832962,0.1,136.41,136.36,25.66735112]
[1763319832963,0.1,136.41,136.36,9.78882769]
[1763319833185,0.1,136.41,136.4,9.78882769]
[1763319833556,0.1,136.41,136.4,7.5011573]
[1763319833773,0.1,136.41,136.39,17.28998499]
[1763319833968,0.78,136.41,136.39,9.78882769]
[1763319837166,0.1,136.41,136.39,22.79786822]
[1763319838058,0.1,136.41,136.39,9.78882769]
[1763319838258,0.68,136.4,136.39,9.78882769]
[1763319839180,0.68,136.4,136.38,9.78882769]
[1763319839861,0.68,136.4,136.36,22.79786822]
[1763319840058,13.68904053,136.4,136.36,9.78882769]
[1763319840564,0.66,136.39,136.36,9.78882769]
[1763319840772,13.66904053,136.39,136.36,9.78882769]
[1763319841079,13.00904053,136.38,136.33,13.00904053]
[1763319841382,13.66904053,136.38,136.33,35.66024053]
[1763319841558,0.66,136.37,136.33,35.66024053]
[1763319842251,103.2,136.4,136.37,9.78882769]
[1763319842452,0.76,136.41,136.37,9.78882769]
[1763319842453,13.66904053,136.39,136.37,9.78882769]
[1763319842673,0.66,136.39,136.37,9.78882769]
[1763319842869,13.76904053,136.41,136.36,22.79786822]
[1763319843267,0.66,136.4,136.36,22.79786822]
[1763319843570,13.66904053,136.4,136.36,9.78882769]
[1763319844082,0.66,136.39,136.36,9.78882769]
[1763319844259,0.66,136.39,136.37,9.78882769]
[1763319844463,0.66,136.4,136.37,9.78882769]
[1763319845490,13.10904053,136.41,136.38,22.79786822]
[1763319845491,0.1,136.41,136.38,22.79786822]
[1763319846969,0.1,136.41,136.4,9.78882769]
[1763319849176,0.1,136.41,136.4,22.79786822]
[1763319849866,0.1,136.41,136.4,9.78882769]
[1763319850390,0.1,136.41,136.4,22.79786822]
[1763319852558,0.1,136.41,136.4,30.12924651]
[1763319852764,0.66,136.48,136.44,9.78882769]
[1763319852964,0.66,136.48,136.47,22.79786822]
[1763319853181,0.66,136.48,136.47,9.78882769]